[Event "*** Titled Tuesday Blitz"]
[Site "Chess.com"]
[Date "2021.04.20"]
[Round "3"]
[White "starplatinum2030"]
[Black "Deepweb2020"]
[Result "1-0"]
[WhiteElo "2271"]
[BlackElo "2489"]
[TimeControl "180+1"]
[EndTime "10:28:25 PDT"]
[Termination "starplatinum2030 won on time"]

1. b3 {[%clk 0:03:00.9]} 1... e5 {[%clk 0:02:56.4]} 2. Bb2 {[%clk 0:03:00.5]}
2... Nc6 {[%clk 0:02:53.8]} 3. e3 {[%clk 0:03:00.7]} 3... e4 {[%clk 0:02:53.7]}
4. d3 {[%clk 0:02:59.2]} 4... exd3 {[%clk 0:02:50.5]} 5. Bxd3 {[%clk 0:02:57.4]}
5... Qg5 {[%clk 0:02:48.6]} 6. g3 {[%clk 0:02:53.5]} 6... d5 {[%clk 0:02:47.3]}
7. Nd2 {[%clk 0:02:53.4]} 7... Nf6 {[%clk 0:02:40.6]} 8. h4 {[%clk 0:02:52.4]}
8... Qg4 {[%clk 0:02:36.5]} 9. Qxg4 {[%clk 0:02:50.4]} 9... Bxg4 {[%clk
0:02:37.4]} 10. Ne2 {[%clk 0:02:49.1]} 10... Nb4 {[%clk 0:02:34]} 11. Nf4 {[%clk
0:02:42.6]} 11... c6 {[%clk 0:02:26.3]} 12. f3 {[%clk 0:02:37.7]} 12... Bd7
{[%clk 0:02:24.7]} 13. Bxf6 {[%clk 0:02:30]} 13... gxf6 {[%clk 0:02:23.6]} 14.
e4 {[%clk 0:02:29.3]} 14... Bd6 {[%clk 0:02:17]} 15. Ne2 {[%clk 0:02:23.7]}
15... Nxd3+ {[%clk 0:02:01.5]} 16. cxd3 {[%clk 0:02:22.2]} 16... Ke7 {[%clk
0:01:49.7]} 17. Kf2 {[%clk 0:02:19.6]} 17... a5 {[%clk 0:01:47]} 18. f4 {[%clk
0:02:18.7]} 18... a4 {[%clk 0:01:45.1]} 19. Rhc1 {[%clk 0:02:16.6]} 19... axb3
{[%clk 0:01:44.4]} 20. axb3 {[%clk 0:02:16.2]} 20... Rhg8 {[%clk 0:01:26.8]} 21.
Nf3 {[%clk 0:02:15.1]} 21... dxe4 {[%clk 0:01:18]} 22. dxe4 {[%clk 0:02:14.7]}
22... Ba3 {[%clk 0:01:18.1]} 23. Rd1 {[%clk 0:02:04.8]} 23... Bc5+ {[%clk
0:01:14.7]} 24. Kg2 {[%clk 0:02:00.6]} 24... Rgd8 {[%clk 0:01:01.2]} 25. Nfd4
{[%clk 0:01:51.1]} 25... Bg4 {[%clk 0:00:56.9]} 26. Nf5+ {[%clk 0:01:39.3]}
26... Bxf5 {[%clk 0:00:53.9]} 27. exf5 {[%clk 0:01:40.2]} 27... Rxa1 {[%clk
0:00:42.4]} 28. Rxa1 {[%clk 0:01:39.3]} 28... Rd2 {[%clk 0:00:40.6]} 29. Re1
{[%clk 0:01:38.3]} 29... Rb2 {[%clk 0:00:37.1]} 30. Kf3 {[%clk 0:01:23.8]} 30...
Bb4 {[%clk 0:00:34.6]} 31. Rd1 {[%clk 0:01:08.5]} 31... Rxb3+ {[%clk 0:00:34]}
32. Kg4 {[%clk 0:01:08.7]} 32... c5 {[%clk 0:00:28.9]} 33. Ra1 {[%clk
0:00:55.5]} 33... c4 {[%clk 0:00:22.2]} 34. Nd4 {[%clk 0:00:55]} 34... Rd3
{[%clk 0:00:19]} 35. Rb1 {[%clk 0:00:53]} 35... Rxd4 {[%clk 0:00:13.7]} 36. Rxb4
{[%clk 0:00:52.8]} 36... Rd7 {[%clk 0:00:05.4]} 37. Rxc4 {[%clk 0:00:52.7]}
37... b5 {[%clk 0:00:05.7]} 38. Re4+ {[%clk 0:00:49.8]} 38... Kd6 {[%clk
0:00:05.3]} 39. Kf3 {[%clk 0:00:48.4]} 39... Rb7 {[%clk 0:00:04.8]} 40. Ke3
{[%clk 0:00:46.7]} 40... b4 {[%clk 0:00:03.7]} 41. Kd2 {[%clk 0:00:40]} 41...
Kd5 {[%clk 0:00:03.5]} 42. Re2 {[%clk 0:00:35.4]} 42... b3 {[%clk 0:00:02.2]}
43. Kc1 {[%clk 0:00:35.1]} 43... Kd4 {[%clk 0:00:02.2]} 44. Kb2 {[%clk 0:00:32]}
44... Kd3 {[%clk 0:00:02.5]} 45. Re8 {[%clk 0:00:31.5]} 45... Kd4 {[%clk
0:00:02]} 46. Rh8 {[%clk 0:00:22.3]} 46... Ke4 {[%clk 0:00:02.3]} 47. Rxh7
{[%clk 0:00:21.6]} 47... Kxf5 {[%clk 0:00:02.9]} 48. Rg7 {[%clk 0:00:21.6]}
48... Ke4 {[%clk 0:00:02.9]} 49. h5 {[%clk 0:00:21.1]} 49... Kf3 {[%clk
0:00:02.3]} 50. h6 {[%clk 0:00:21.1]} 50... Rb8 {[%clk 0:00:02.3]} 51. h7 {[%clk
0:00:21.2]} 51... Rh8 {[%clk 0:00:01.6]} 52. Kxb3 {[%clk 0:00:21.3]} 52... f5
{[%clk 0:00:01.1]} 53. Kc4 {[%clk 0:00:20.3]} 53... f6 {[%clk 0:00:01.4]} 54.
Kd5 {[%clk 0:00:20.5]} 1-0

[Event "*** Titled Tuesday Blitz"]
[Site "Chess.com"]
[Date "2021.04.20"]
[Round "3"]
[White "Sharpchess22"]
[Black "Chernobay_Artem"]
[Result "1/2-1/2"]
[WhiteElo "2802"]
[BlackElo "2627"]
[TimeControl "180+1"]
[EndTime "10:28:26 PDT"]
[Termination "Game drawn by repetition"]

1. c4 {[%clk 0:02:54.6]} 1... Nf6 {[%clk 0:02:59.5]} 2. Nc3 {[%clk 0:02:53.7]}
2... g6 {[%clk 0:03:00.1]} 3. e4 {[%clk 0:02:52.9]} 3... d6 {[%clk 0:03:00]} 4.
d4 {[%clk 0:02:53.2]} 4... Bg7 {[%clk 0:03:00.2]} 5. h3 {[%clk 0:02:53.6]} 5...
e5 {[%clk 0:02:59.6]} 6. dxe5 {[%clk 0:02:47.5]} 6... dxe5 {[%clk 0:03:00.5]} 7.
Qxd8+ {[%clk 0:02:47.6]} 7... Kxd8 {[%clk 0:03:01.4]} 8. Bg5 {[%clk 0:02:47.8]}
8... Be6 {[%clk 0:02:31.3]} 9. O-O-O+ {[%clk 0:02:42.9]} 9... Nd7 {[%clk
0:02:31.2]} 10. Nf3 {[%clk 0:02:30.4]} 10... Kc8 {[%clk 0:02:30.4]} 11. Be3
{[%clk 0:02:25.9]} 11... h6 {[%clk 0:02:29.6]} 12. g4 {[%clk 0:02:22.1]} 12...
c6 {[%clk 0:02:21]} 13. b3 {[%clk 0:02:16.7]} 13... Kc7 {[%clk 0:02:19.8]} 14.
Rg1 {[%clk 0:02:14.6]} 14... g5 {[%clk 0:01:56.8]} 15. Be2 {[%clk 0:02:02.8]}
15... Rae8 {[%clk 0:01:44.5]} 16. h4 {[%clk 0:01:53.5]} 16... Nxg4 {[%clk
0:01:44]} 17. Nxg5 {[%clk 0:01:52.4]} 17... Nxe3 {[%clk 0:01:35.1]} 18. Nxe6+
{[%clk 0:01:51.9]} 18... Rxe6 {[%clk 0:01:34.2]} 19. Rxd7+ {[%clk 0:01:43.1]}
19... Kxd7 {[%clk 0:01:35.1]} 20. Rxg7 {[%clk 0:01:43.1]} 20... Rg6 {[%clk
0:01:33.4]} 21. Rxg6 {[%clk 0:01:36.8]} 21... fxg6 {[%clk 0:01:33.4]} 22. fxe3
{[%clk 0:01:37.5]} 22... Rf8 {[%clk 0:01:24.5]} 23. Nd1 {[%clk 0:01:37.1]} 23...
Kd6 {[%clk 0:01:20]} 24. b4 {[%clk 0:01:33.6]} 24... a5 {[%clk 0:01:13.8]} 25.
c5+ {[%clk 0:01:30.3]} 25... Kc7 {[%clk 0:01:13.6]} 26. a3 {[%clk 0:01:30.1]}
26... axb4 {[%clk 0:01:13.3]} 27. axb4 {[%clk 0:01:31]} 27... b6 {[%clk
0:01:12.5]} 28. Kd2 {[%clk 0:01:23.7]} 28... Ra8 {[%clk 0:01:03.9]} 29. Nb2
{[%clk 0:01:20.9]} 29... bxc5 {[%clk 0:00:57]} 30. bxc5 {[%clk 0:01:20.4]} 30...
Ra5 {[%clk 0:00:55.5]} 31. Nd3 {[%clk 0:01:19.8]} 31... Ra2+ {[%clk 0:00:55.5]}
32. Ke1 {[%clk 0:01:19.2]} 32... Rc2 {[%clk 0:00:54.4]} 33. h5 {[%clk
0:01:11.9]} 33... gxh5 {[%clk 0:00:53.5]} 34. Bxh5 {[%clk 0:01:12.8]} 34... Kd8
{[%clk 0:00:50.3]} 35. Bd1 {[%clk 0:01:11.6]} 35... Rc4 {[%clk 0:00:49.1]} 36.
Bf3 {[%clk 0:01:06.2]} 36... Ke7 {[%clk 0:00:47.5]} 37. Kd2 {[%clk 0:01:06.3]}
37... Kf6 {[%clk 0:00:46.9]} 38. Bg4 {[%clk 0:01:06.4]} 38... Rxe4 {[%clk
0:00:41.3]} 39. Bd7 {[%clk 0:01:06.3]} 39... Rc4 {[%clk 0:00:39]} 40. Bxc6
{[%clk 0:01:04.7]} 40... e4 {[%clk 0:00:38.9]} 41. Nf2 {[%clk 0:01:05.1]} 41...
Ke5 {[%clk 0:00:34]} 42. Nxe4 {[%clk 0:01:04.6]} 42... h5 {[%clk 0:00:34]} 43.
Ke2 {[%clk 0:01:00.4]} 43... h4 {[%clk 0:00:31.3]} 44. Kf2 {[%clk 0:00:58]}
44... Rc2+ {[%clk 0:00:31]} 45. Kg1 {[%clk 0:00:55.3]} 45... h3 {[%clk
0:00:30.7]} 46. Nf2 {[%clk 0:00:54.6]} 46... h2+ {[%clk 0:00:27.4]} 47. Kf1
{[%clk 0:00:54.2]} 47... Rxc5 {[%clk 0:00:13.4]} 48. Nd3+ {[%clk 0:00:50.1]}
48... Kd6 {[%clk 0:00:14]} 49. Nxc5 {[%clk 0:00:44.9]} 49... Kxc6 {[%clk
0:00:14.6]} 50. Kg2 {[%clk 0:00:44.7]} 50... Kxc5 {[%clk 0:00:12.8]} 51. Kxh2
{[%clk 0:00:45]} 51... Kd5 {[%clk 0:00:13.1]} 52. Kg3 {[%clk 0:00:44.6]} 52...
Ke4 {[%clk 0:00:11.2]} 53. Kf2 {[%clk 0:00:44.9]} 53... Ke5 {[%clk 0:00:09.8]}
54. Ke2 {[%clk 0:00:45.3]} 54... Ke4 {[%clk 0:00:09.9]} 55. Kd2 {[%clk
0:00:45.5]} 55... Ke5 {[%clk 0:00:09.8]} 56. Kd3 {[%clk 0:00:45.4]} 56... Kd5
{[%clk 0:00:10]} 57. e4+ {[%clk 0:00:45.7]} 57... Ke5 {[%clk 0:00:10.6]} 58. Ke3
{[%clk 0:00:46.2]} 58... Ke6 {[%clk 0:00:11.2]} 59. Kf4 {[%clk 0:00:46.6]} 59...
Kf6 {[%clk 0:00:11.7]} 60. Kg3 {[%clk 0:00:46.9]} 60... Ke5 {[%clk 0:00:11.4]}
61. Kf3 {[%clk 0:00:47.3]} 61... Ke6 {[%clk 0:00:12]} 62. Kf4 {[%clk 0:00:46.3]}
62... Kf6 {[%clk 0:00:12.3]} 63. e5+ {[%clk 0:00:46.8]} 63... Ke6 {[%clk
0:00:12.9]} 64. Ke4 {[%clk 0:00:47.3]} 64... Ke7 {[%clk 0:00:13.2]} 65. Kd4
{[%clk 0:00:47.3]} 65... Ke6 {[%clk 0:00:12.8]} 66. Ke4 {[%clk 0:00:47.4]} 66...
Ke7 {[%clk 0:00:12]} 67. Kd5 {[%clk 0:00:48.1]} 67... Kd7 {[%clk 0:00:12.1]} 68.
Kc5 {[%clk 0:00:48.3]} 68... Ke6 {[%clk 0:00:11.9]} 69. Kd4 {[%clk 0:00:49.2]}
69... Ke7 {[%clk 0:00:12.1]} 70. Ke4 {[%clk 0:00:50.1]} 70... Ke6 {[%clk
0:00:12.2]} 71. Kf4 {[%clk 0:00:50.6]} 71... Ke7 {[%clk 0:00:12.2]} 72. Kf5
{[%clk 0:00:51.2]} 72... Kf7 {[%clk 0:00:12.6]} 73. Kf4 {[%clk 0:00:51.4]} 73...
Ke6 {[%clk 0:00:12.7]} 74. Ke4 {[%clk 0:00:52.3]} 1/2-1/2

[Event "*** Titled Tuesday Blitz"]
[Site "Chess.com"]
[Date "2021.04.20"]
[Round "3"]
[White "Grandelicious"]
[Black "beautroll"]
[Result "1-0"]
[WhiteElo "2817"]
[BlackElo "2456"]
[TimeControl "180+1"]
[EndTime "10:28:26 PDT"]
[Termination "Grandelicious won on time"]

1. d4 {[%clk 0:03:00.9]} 1... Nf6 {[%clk 0:02:59.8]} 2. Nf3 {[%clk 0:02:58.1]}
2... g6 {[%clk 0:02:59.2]} 3. Nbd2 {[%clk 0:02:57.6]} 3... Bg7 {[%clk
0:02:58.4]} 4. e4 {[%clk 0:02:57.8]} 4... d6 {[%clk 0:02:58.6]} 5. Bb5+ {[%clk
0:02:56.6]} 5... c6 {[%clk 0:02:57.9]} 6. Bd3 {[%clk 0:02:56.9]} 6... O-O {[%clk
0:02:56.8]} 7. O-O {[%clk 0:02:57.5]} 7... Qc7 {[%clk 0:02:56.2]} 8. a4 {[%clk
0:02:55.5]} 8... b6 {[%clk 0:02:47.8]} 9. Re1 {[%clk 0:02:50]} 9... e5 {[%clk
0:02:46.6]} 10. dxe5 {[%clk 0:02:49.4]} 10... dxe5 {[%clk 0:02:47.5]} 11. Nc4
{[%clk 0:02:50]} 11... Re8 {[%clk 0:02:43.2]} 12. b3 {[%clk 0:02:48.8]} 12...
Bb7 {[%clk 0:02:06]} 13. Bf1 {[%clk 0:02:34.9]} 13... c5 {[%clk 0:01:58.5]} 14.
Nfd2 {[%clk 0:01:58.7]} 14... Nc6 {[%clk 0:01:51.9]} 15. c3 {[%clk 0:01:56]}
15... a6 {[%clk 0:01:42.9]} 16. Qf3 {[%clk 0:01:51.9]} 16... Rad8 {[%clk
0:01:40.4]} 17. Ne3 {[%clk 0:01:48.6]} 17... Na5 {[%clk 0:01:33.3]} 18. Nec4
{[%clk 0:01:18.5]} 18... Nxc4 {[%clk 0:00:57]} 19. Nxc4 {[%clk 0:01:19.4]} 19...
Nxe4 {[%clk 0:00:51.6]} 20. Qh3 {[%clk 0:00:55.5]} 20... f5 {[%clk 0:00:49.7]}
21. Bb2 {[%clk 0:00:49.1]} 21... b5 {[%clk 0:00:46]} 22. axb5 {[%clk 0:00:44.9]}
22... axb5 {[%clk 0:00:46.8]} 23. Na5 {[%clk 0:00:45.8]} 23... Ba6 {[%clk
0:00:29.9]} 24. b4 {[%clk 0:00:37]} 24... Rd2 {[%clk 0:00:26.1]} 25. Bc1 {[%clk
0:00:33]} 25... Rd6 {[%clk 0:00:22.2]} 26. Be3 {[%clk 0:00:26.3]} 26... c4
{[%clk 0:00:18.3]} 27. Ra3 {[%clk 0:00:20.5]} 27... Red8 {[%clk 0:00:17.3]} 28.
Qf3 {[%clk 0:00:18.8]} 28... Nf6 {[%clk 0:00:11.1]} 29. Bc5 {[%clk 0:00:16.3]}
29... Rd2 {[%clk 0:00:11.2]} 30. Qc6 {[%clk 0:00:13.9]} 30... Qc8 {[%clk
0:00:06.9]} 31. Be7 {[%clk 0:00:11]} 31... Re8 {[%clk 0:00:03.6]} 32. Bxf6
{[%clk 0:00:10.6]} 32... Qxc6 {[%clk 0:00:02.5]} 33. Nxc6 {[%clk 0:00:11.5]}
33... Bxf6 {[%clk 0:00:01.9]} 34. Rxa6 {[%clk 0:00:12.2]} 34... e4 {[%clk
0:00:02.4]} 35. Rc1 {[%clk 0:00:09.9]} 35... Rd3 {[%clk 0:00:01.8]} 36. Ra3
{[%clk 0:00:08.7]} 36... Rd2 {[%clk 0:00:01.4]} 37. Na7 {[%clk 0:00:08.8]} 37...
Red8 {[%clk 0:00:01.2]} 38. Nxb5 {[%clk 0:00:08.9]} 38... Rd1 {[%clk 0:00:01.5]}
39. Raa1 {[%clk 0:00:09]} 39... Rxc1 {[%clk 0:00:01.2]} 40. Rxc1 {[%clk
0:00:09.9]} 40... Rd2 {[%clk 0:00:01.6]} 41. Bxc4+ {[%clk 0:00:10.2]} 41... Kg7
{[%clk 0:00:01.4]} 42. g3 {[%clk 0:00:10.8]} 42... Bg5 {[%clk 0:00:01.7]} 43.
Re1 {[%clk 0:00:09.1]} 43... Rb2 {[%clk 0:00:01.8]} 44. Re2 {[%clk 0:00:08.5]}
44... Rb1+ {[%clk 0:00:01.6]} 45. Kg2 {[%clk 0:00:09.1]} 45... Bc1 {[%clk
0:00:02.4]} 46. f3 {[%clk 0:00:09.3]} 46... e3 {[%clk 0:00:02.1]} 47. Nd4 {[%clk
0:00:08.5]} 47... Bd2 {[%clk 0:00:02.2]} 48. f4 {[%clk 0:00:08.1]} 48... Kf6
{[%clk 0:00:01.9]} 49. b5 {[%clk 0:00:07.7]} 49... Rc1 {[%clk 0:00:01.7]} 50. b6
{[%clk 0:00:07.1]} 50... Rb1 {[%clk 0:00:01.7]} 51. Bb5 {[%clk 0:00:07.3]} 1-0

[Event "*** Titled Tuesday Blitz"]
[Site "Chess.com"]
[Date "2021.04.20"]
[Round "3"]
[White "FairChess_on_YouTube"]
[Black "oskariot"]
[Result "1/2-1/2"]
[WhiteElo "3012"]
[BlackElo "2684"]
[TimeControl "180+1"]
[EndTime "10:28:31 PDT"]
[Termination "Game drawn by repetition"]

1. Nf3 {[%clk 0:03:00.9]} 1... Nf6 {[%clk 0:02:59.5]} 2. c4 {[%clk 0:02:58.9]}
2... c5 {[%clk 0:02:59.6]} 3. Nc3 {[%clk 0:02:56.6]} 3... b6 {[%clk 0:02:55.5]}
4. g3 {[%clk 0:02:50.6]} 4... Bb7 {[%clk 0:02:55.6]} 5. Bg2 {[%clk 0:02:50.9]}
5... g6 {[%clk 0:02:54.9]} 6. O-O {[%clk 0:02:48.2]} 6... Bg7 {[%clk 0:02:55]}
7. Re1 {[%clk 0:02:48.8]} 7... O-O {[%clk 0:02:53.2]} 8. e4 {[%clk 0:02:48]}
8... d6 {[%clk 0:02:53.8]} 9. d4 {[%clk 0:02:47.4]} 9... cxd4 {[%clk 0:02:53.2]}
10. Nxd4 {[%clk 0:02:48.3]} 10... Nbd7 {[%clk 0:02:41.5]} 11. e5 {[%clk
0:02:37.3]} 11... dxe5 {[%clk 0:02:42.4]} 12. Ne6 {[%clk 0:02:12.4]} 12... fxe6
{[%clk 0:02:39.5]} 13. Bxb7 {[%clk 0:02:12.3]} 13... Rb8 {[%clk 0:02:38.7]} 14.
Bg2 {[%clk 0:02:12.8]} 14... Nc5 {[%clk 0:02:27.2]} 15. Be3 {[%clk 0:02:06.8]}
15... Qe8 {[%clk 0:02:10.8]} 16. Qc2 {[%clk 0:01:57]} 16... e4 {[%clk
0:02:00.9]} 17. Red1 {[%clk 0:01:44.4]} 17... Ng4 {[%clk 0:01:46.1]} 18. Nxe4
{[%clk 0:01:34.1]} 18... Nxe3 {[%clk 0:01:40.7]} 19. fxe3 {[%clk 0:01:35]} 19...
Nxe4 {[%clk 0:01:31.6]} 20. Qxe4 {[%clk 0:01:34.4]} 20... Bxb2 {[%clk
0:01:21.9]} 21. Qxe6+ {[%clk 0:01:34.4]} 21... Kh8 {[%clk 0:01:19.8]} 22. Rab1
{[%clk 0:01:34.6]} 22... Ba3 {[%clk 0:01:15.4]} 23. Rd5 {[%clk 0:01:25.3]} 23...
Qf7 {[%clk 0:01:08.6]} 24. Qe5+ {[%clk 0:01:20.5]} 24... Qf6 {[%clk 0:01:07.7]}
25. Qxf6+ {[%clk 0:01:17.1]} 25... Rxf6 {[%clk 0:01:03.2]} 26. Rf1 {[%clk
0:01:16.7]} 26... Bc5 {[%clk 0:00:57.4]} 27. Rxf6 {[%clk 0:01:15]} 27... exf6
{[%clk 0:00:58.3]} 28. Rd7 {[%clk 0:01:11.5]} 28... Bxe3+ {[%clk 0:00:56.1]} 29.
Kf1 {[%clk 0:01:11.6]} 29... a5 {[%clk 0:00:56.4]} 30. a4 {[%clk 0:01:11.4]}
30... Bc5 {[%clk 0:00:50.4]} 31. Ra7 {[%clk 0:01:04.3]} 31... f5 {[%clk
0:00:27.7]} 32. Bd5 {[%clk 0:01:00.4]} 32... Re8 {[%clk 0:00:23.4]} 33. Ra8
{[%clk 0:00:58.3]} 33... Rxa8 {[%clk 0:00:23.2]} 34. Bxa8 {[%clk 0:00:59.2]}
34... Kg7 {[%clk 0:00:23.9]} 35. Kg2 {[%clk 0:00:58.7]} 35... Kf6 {[%clk
0:00:24.3]} 36. h3 {[%clk 0:00:57]} 36... Ke5 {[%clk 0:00:23.9]} 37. Bc6 {[%clk
0:00:55.1]} 37... Kd4 {[%clk 0:00:23.8]} 38. Bb5 {[%clk 0:00:54.1]} 38... Bd6
{[%clk 0:00:23.9]} 39. Kf3 {[%clk 0:00:51.9]} 39... h5 {[%clk 0:00:22]} 40. Be8
{[%clk 0:00:42.3]} 40... g5 {[%clk 0:00:22.1]} 41. Bxh5 {[%clk 0:00:33.5]} 41...
Kxc4 {[%clk 0:00:19.5]} 42. Be8 {[%clk 0:00:33.2]} 42... Kd4 {[%clk 0:00:15.8]}
43. Bd7 {[%clk 0:00:31.1]} 43... Ke5 {[%clk 0:00:15.8]} 44. Bb5 {[%clk
0:00:30.8]} 44... Bb4 {[%clk 0:00:16.2]} 45. Bd3 {[%clk 0:00:29.9]} 45... Ba3
{[%clk 0:00:16.5]} 46. Bb5 {[%clk 0:00:28.6]} 46... Bc1 {[%clk 0:00:16.6]} 47.
Bd7 {[%clk 0:00:27.9]} 47... Bd2 {[%clk 0:00:16.3]} 48. Bb5 {[%clk 0:00:26.9]}
48... Kd4 {[%clk 0:00:15.6]} 49. Bd7 {[%clk 0:00:26.6]} 49... f4 {[%clk
0:00:16]} 50. h4 {[%clk 0:00:21.5]} 50... fxg3 {[%clk 0:00:10.1]} 51. hxg5
{[%clk 0:00:21.5]} 51... Bxg5 {[%clk 0:00:07.1]} 52. Kxg3 {[%clk 0:00:20.8]}
52... Kc5 {[%clk 0:00:07.4]} 53. Bb5 {[%clk 0:00:21]} 53... Bd8 {[%clk
0:00:08.3]} 54. Kg4 {[%clk 0:00:21.6]} 54... Kb4 {[%clk 0:00:08.9]} 55. Kh3
{[%clk 0:00:22.5]} 55... Bc7 {[%clk 0:00:09.3]} 56. Kg4 {[%clk 0:00:23.4]} 56...
Bd6 {[%clk 0:00:09.8]} 57. Kh3 {[%clk 0:00:24.3]} 57... Bc5 {[%clk 0:00:10.4]}
58. Kg4 {[%clk 0:00:25.2]} 58... Kc3 {[%clk 0:00:10.8]} 59. Kh3 {[%clk
0:00:26.1]} 59... Kd4 {[%clk 0:00:11.4]} 60. Kg4 {[%clk 0:00:27]} 60... Ke5
{[%clk 0:00:12.1]} 61. Kh3 {[%clk 0:00:27.9]} 61... Kd6 {[%clk 0:00:12.8]} 62.
Kg2 {[%clk 0:00:28.7]} 62... Kc7 {[%clk 0:00:13.6]} 63. Kh1 {[%clk 0:00:29.6]}
63... Kb7 {[%clk 0:00:14.3]} 64. Kg2 {[%clk 0:00:30.5]} 64... Ka8 {[%clk
0:00:14.8]} 65. Kh1 {[%clk 0:00:31.2]} 65... Bd6 {[%clk 0:00:15.2]} 66. Kg2
{[%clk 0:00:32.1]} 66... Bb8 {[%clk 0:00:15.6]} 67. Kh1 {[%clk 0:00:33]} 67...
Ba7 {[%clk 0:00:16]} 68. Kg2 {[%clk 0:00:33]} 68... Kb7 {[%clk 0:00:16.5]} 69.
Kh1 {[%clk 0:00:33.9]} 69... Bb8 {[%clk 0:00:17]} 70. Kg2 {[%clk 0:00:34.8]}
70... Ka8 {[%clk 0:00:17.5]} 71. Kf3 {[%clk 0:00:35.7]} 71... Ka7 {[%clk
0:00:18]} 72. Ke4 {[%clk 0:00:36.6]} 72... Bd6 {[%clk 0:00:18.3]} 73. Kd5 {[%clk
0:00:37.5]} 73... Bb4 {[%clk 0:00:18.8]} 74. Kc6 {[%clk 0:00:38.4]} 74... Bc5
{[%clk 0:00:19.6]} 75. Kc7 {[%clk 0:00:38.9]} 75... Bb4 {[%clk 0:00:20.5]} 76.
Kc8 {[%clk 0:00:39.8]} 76... Bc5 {[%clk 0:00:21.4]} 77. Bc6 {[%clk 0:00:40.6]}
77... Bb4 {[%clk 0:00:22.3]} 78. Bb5 {[%clk 0:00:41.5]} 78... Bc5 {[%clk
0:00:23.2]} 79. Bc6 {[%clk 0:00:42.4]} 79... Bb4 {[%clk 0:00:24.1]} 80. Bb5
{[%clk 0:00:43.3]} 1/2-1/2

[Event "*** Titled Tuesday Blitz"]
[Site "Chess.com"]
[Date "2021.04.20"]
[Round "3"]
[White "ljuks68"]
[Black "SmoothAsAHedgehog"]
[Result "1-0"]
[WhiteElo "2436"]
[BlackElo "2665"]
[TimeControl "180+1"]
[EndTime "10:28:33 PDT"]
[Termination "ljuks68 won on time"]

1. e4 {[%clk 0:03:00.9]} 1... c6 {[%clk 0:02:53.8]} 2. d4 {[%clk 0:02:59.9]}
2... d5 {[%clk 0:02:54.2]} 3. e5 {[%clk 0:03:00.4]} 3... a6 {[%clk 0:02:54.2]}
4. Nf3 {[%clk 0:02:55.6]} 4... Bg4 {[%clk 0:02:53.4]} 5. Nbd2 {[%clk 0:02:49.6]}
5... e6 {[%clk 0:02:50.2]} 6. Nb3 {[%clk 0:02:49.1]} 6... Nd7 {[%clk 0:02:30.8]}
7. Be2 {[%clk 0:02:48.3]} 7... Bxf3 {[%clk 0:02:24.9]} 8. Bxf3 {[%clk
0:02:47.8]} 8... c5 {[%clk 0:02:25.8]} 9. c3 {[%clk 0:02:48.1]} 9... Rc8 {[%clk
0:02:19.4]} 10. Bf4 {[%clk 0:02:41.1]} 10... cxd4 {[%clk 0:02:09.4]} 11. Nxd4
{[%clk 0:02:39.1]} 11... Ne7 {[%clk 0:02:04.5]} 12. Bg3 {[%clk 0:02:13.2]} 12...
Nc6 {[%clk 0:01:40.3]} 13. Nxc6 {[%clk 0:02:09]} 13... bxc6 {[%clk 0:01:40.8]}
14. O-O {[%clk 0:02:09.1]} 14... a5 {[%clk 0:01:33.4]} 15. Be2 {[%clk
0:02:07.9]} 15... Bc5 {[%clk 0:01:25.1]} 16. Kh1 {[%clk 0:02:06.8]} 16... Qb6
{[%clk 0:01:15.2]} 17. b3 {[%clk 0:01:56.2]} 17... g6 {[%clk 0:01:13.6]} 18. Bd3
{[%clk 0:01:41.6]} 18... h5 {[%clk 0:01:05.6]} 19. h4 {[%clk 0:01:35.5]} 19...
Be7 {[%clk 0:00:57.7]} 20. Qd2 {[%clk 0:01:30.5]} 20... Qd8 {[%clk 0:00:50.1]}
21. Qf4 {[%clk 0:01:29.8]} 21... g5 {[%clk 0:00:46.4]} 22. hxg5 {[%clk
0:01:29.2]} 22... Bxg5 {[%clk 0:00:47.3]} 23. Qf3 {[%clk 0:01:29.2]} 23... h4
{[%clk 0:00:45.7]} 24. Bf4 {[%clk 0:01:29.3]} 24... Bxf4 {[%clk 0:00:32.7]} 25.
Qxf4 {[%clk 0:01:28.9]} 25... Rh5 {[%clk 0:00:32.8]} 26. Rae1 {[%clk 0:01:26.3]}
26... Qg5 {[%clk 0:00:30.9]} 27. Qxg5 {[%clk 0:01:25.9]} 27... Rxg5 {[%clk
0:00:31.8]} 28. f4 {[%clk 0:01:24.4]} 28... Rg3 {[%clk 0:00:31.5]} 29. Rf3
{[%clk 0:01:16.4]} 29... Rxf3 {[%clk 0:00:29.1]} 30. gxf3 {[%clk 0:01:16.5]}
30... Ke7 {[%clk 0:00:29.7]} 31. f5 {[%clk 0:01:15]} 31... Rg8 {[%clk
0:00:22.6]} 32. f6+ {[%clk 0:00:49.1]} 32... Kd8 {[%clk 0:00:22.1]} 33. f4
{[%clk 0:00:45.9]} 33... Rg3 {[%clk 0:00:20.9]} 34. Be2 {[%clk 0:00:34.8]} 34...
Re3 {[%clk 0:00:17.5]} 35. Kg2 {[%clk 0:00:33.4]} 35... c5 {[%clk 0:00:14.6]}
36. Kf2 {[%clk 0:00:32.6]} 36... Re4 {[%clk 0:00:13.3]} 37. Kf3 {[%clk
0:00:23.7]} 37... Nxe5+ {[%clk 0:00:11.4]} 38. fxe5 {[%clk 0:00:22.7]} 38...
Rxe5 {[%clk 0:00:12.3]} 39. Kg4 {[%clk 0:00:18]} 39... Re4+ {[%clk 0:00:06.6]}
40. Kf3 {[%clk 0:00:13.4]} 40... Re5 {[%clk 0:00:04.2]} 41. Kg4 {[%clk 0:00:11]}
41... Re4+ {[%clk 0:00:04.5]} 42. Kf3 {[%clk 0:00:10.4]} 42... e5 {[%clk
0:00:04.9]} 43. Rg1 {[%clk 0:00:09.1]} 43... Rf4+ {[%clk 0:00:04.9]} 44. Ke3
{[%clk 0:00:08.5]} 44... Rxf6 {[%clk 0:00:03.5]} 45. Rg5 {[%clk 0:00:08.8]}
45... Re6 {[%clk 0:00:03.9]} 46. Rh5 {[%clk 0:00:08.5]} 46... Kc7 {[%clk
0:00:03.6]} 47. Rxh4 {[%clk 0:00:08.3]} 47... Kd6 {[%clk 0:00:04]} 48. Rh7
{[%clk 0:00:08.1]} 48... f5 {[%clk 0:00:04.2]} 49. Rf7 {[%clk 0:00:07.7]} 49...
f4+ {[%clk 0:00:04]} 50. Kf2 {[%clk 0:00:07.7]} 50... Rh6 {[%clk 0:00:03.8]} 51.
Bg4 {[%clk 0:00:07.6]} 51... Kc6 {[%clk 0:00:02.5]} 52. c4 {[%clk 0:00:06.9]}
52... dxc4 {[%clk 0:00:02.2]} 53. bxc4 {[%clk 0:00:06.4]} 53... Kd6 {[%clk
0:00:02]} 54. Bf3 {[%clk 0:00:05.8]} 54... Rh2+ {[%clk 0:00:01.6]} 55. Kf1
{[%clk 0:00:05]} 55... Rxa2 {[%clk 0:00:01.7]} 56. Bd5 {[%clk 0:00:05.3]} 56...
Rb2 {[%clk 0:00:01.4]} 57. Rf6+ {[%clk 0:00:05.3]} 57... Kd7 {[%clk 0:00:01.5]}
58. Ra6 {[%clk 0:00:05.2]} 1-0